[Event "EYTCC Girls U18 2022"]
[Site "Thessaloniki"]
[Date "2022.07.16"]
[Round "5.11"]
[White "Dereka, Konstantina"]
[Black "Alexandri, Dimitra"]
[Result "0-1"]
[ECO "E71"]
[WhiteElo "1451"]
[BlackElo "1683"]
[Annotator "NA"]
[PlyCount "62"]
[EventDate "2022.07.12"]
[EventType "team-tourn"]
[EventCountry "GRE"]
[SourceTitle "playchess.com"]
[Source "ChessBase"]
[SourceQuality "1"]
[WhiteTeam "Greece"]
[BlackTeam "Greece"]
[WhiteTeamCountry "GRE"]
[BlackTeamCountry "GRE"]
[TimeControl "40/5400+30:1800+30"]

1. d4 {[%emt 0:00:02]} Nf6 {[%emt 0:00:08]} 2. c4 {[%emt 0:00:06]} g6 {[%emt 0:00:08]} 3. Nc3 {[%emt 0:00:04]} Bg7 {[%emt 0:00:11]} 4. e4 {[%emt 0:00:05]} d6 {[%emt 0:00:09]} 5. h3 {[%emt 0:00:10]} O-O {[%emt 0:00:08]} 6. Nf3 {[%emt 0:00:03]} e5 {[%emt 0:00:11]} 7. d5 {[%emt 0:00:05]} a5 {[%emt 0:00:07]} 8. g4 {[%emt 0:00:09]} Na6 {[%emt 0:00:07]} 9. Be3 {[%emt 0:00:09]} Nd7 {[%emt 0:00:07]} 10. Be2 {[%emt 0:01:44]} Ndc5 {[%emt 0:00:39]} 11. Qd2 {[%emt 0:03:48]} Bd7 {[%emt 0:04:25]} 12. O-O-O {[%emt 0:02:00]} a4 {[%emt 0:07:06]} 13. Rdg1 {[%emt 0:06:18]} c6 {[%emt 0:07:24]} 14. h4 {[%emt 0:05:23]} cxd5 {[%emt 0:01:05]} 15. exd5 {[%emt 0:06:56]} Qa5 {[%emt 0:27:11]} 16. Qd1 {[%emt 0:17:16]} a3 {[%emt 0:03:12]} 17. Kb1 {[%emt 0:16:47]} axb2 {[%emt 0:17:09]} 18. Qc2 {[%emt 0:02:49]} Nb4 {[%emt 0:00:35]} 19. Qxb2 {[%emt 0:00:14]} e4 {[%emt 0:07:20]} 20. Nd4 {[%emt 0:04:10]} Na4 {[%emt 0:05:05]} 21. Nxa4 {[%emt 0:03:28]} Qxa4 {[%emt 0:00:14]} 22. Qb3 {[%emt 0:02:04]} Qxa2+ {[%emt 0:01:49]} 23. Qxa2 {[%emt 0:00:08]} Rxa2 {[%emt 0:00:14]} 24. Bd1 {[%emt 0:03:21]} Rfa8 {[%emt 0:00:37]} 25. Bb3 {[%emt 0:00:57]} R2a3 {[%emt 0:03:08]} 26. Kb2 {[%emt 0:01:49]} Nd3+ {[%emt 0:00:36]} 27. Kc2 {[%emt 0:01:09]} Ba4 {[%emt 0:01:48]} 28. Bxa4 {[%emt 0:01:51]} R8xa4 {[%emt 0:00:42]} 29. Nb5 {[%emt 0:01:28]} Rxc4+ {[%emt 0:00:20]} 30. Kd2 {[%emt 0:00:42]} Ra2+ {[%emt 0:00:24]} 31. Kd1 {[%emt 0:00:09]} Rb4 {[%emt 0:01:07]} 0-1

[Event "EYTCC Girls U18 2022"]
[Site "Thessaloniki"]
[Date "2022.07.16"]
[Round "5.12"]
[White "Alexandri, Vasiliki"]
[Black "Kapia, Aggeliki"]
[Result "1/2-1/2"]
[ECO "E94"]
[WhiteElo "1527"]
[BlackElo "1230"]
[Annotator "NA"]
[PlyCount "111"]
[EventDate "2022.07.12"]
[EventType "team-tourn"]
[EventCountry "GRE"]
[SourceTitle "playchess.com"]
[Source "ChessBase"]
[SourceQuality "1"]
[WhiteTeam "Greece"]
[BlackTeam "Greece"]
[WhiteTeamCountry "GRE"]
[BlackTeamCountry "GRE"]
[TimeControl "40/5400+30:1800+30"]

1. d4 {[%emt 0:00:03]} Nf6 {[%emt 0:00:09]} 2. c4 {[%emt 0:00:06]} g6 {[%emt 0:00:11]} 3. Nc3 {[%emt 0:00:02]} Bg7 {[%emt 0:00:00]} 4. e4 {[%emt 0:00:30]} d6 {[%emt 0:00:27]} 5. Be2 {[%emt 0:00:39]} O-O {[%emt 0:00:25]} 6. Nf3 {[%emt 0:01:37]} e5 {[%emt 0:01:03]} 7. O-O {[%emt 0:00:19]} exd4 {[%emt 0:02:58]} 8. Nxd4 {[%emt 0:00:05]} Re8 {[%emt 0:00:57]} 9. f3 {[%emt 0:02:01]} c6 {[%emt 0:07:25]} 10. Be3 {[%emt 0:19:06]} d5 {[%emt 0:01:15]} 11. cxd5 {[%emt 0:00:13]} Nxd5 {[%emt 0:01:53]} 12. Bf2 {[%emt 0:02:10]} Nf4 {[%emt 0:19:39]} 13. Nb3 {[%emt 0:12:47]} Qxd1 {[%emt 0:10:26]} 14. Bxd1 {[%emt 0:00:04]} Nd3 {[%emt 0:03:16]} 15. Bd4 {[%emt 0:00:51]} Bxd4+ {[%emt 0:02:51]} 16. Nxd4 {[%emt 0:00:05]} Rd8 {[%emt 0:11:11]} 17. Nb3 {[%emt 0:00:08]} Be6 {[%emt 0:02:16]} 18. Rb1 {[%emt 0:04:55]} Na6 {[%emt 0:02:50]} 19. Be2 {[%emt 0:03:51]} Nab4 {[%emt 0:05:41]} 20. Bxd3 {[%emt 0:03:24]} Rxd3 {[%emt 0:03:12]} 21. Nc5 {[%emt 0:00:11]} Rd2 {[%emt 0:02:53]} 22. Nxe6 {[%emt 0:00:31]} fxe6 {[%emt 0:00:12]} 23. Rf2 {[%emt 0:01:24]} Rad8 {[%emt 0:02:27]} 24. a3 {[%emt 0:01:12]} Rxf2 {[%emt 0:03:05]} 25. Kxf2 {[%emt 0:00:26]} Nd3+ {[%emt 0:00:51]} 26. Ke3 {[%emt 0:00:23]} Ne5 {[%emt 0:02:04]} 27. Rd1 {[%emt 0:02:17]} Nc4+ {[%emt 0:02:30]} 28. Ke2 {[%emt 0:00:11]} Rxd1 {[%emt 0:00:18]} 29. Nxd1 {[%emt 0:00:03]} Kf7 {[%emt 0:00:23]} 30. Kd3 {[%emt 0:00:28]} Nb6 {[%emt 0:00:57]} 31. Kd4 {[%emt 0:01:40]} Ke7 {[%emt 0:01:34]} 32. Nc3 {[%emt 0:01:51]} Nd7 {[%emt 0:03:15]} 33. f4 {[%emt 0:04:01]} e5+ {[%emt 0:02:07]} 34. fxe5 {[%emt 0:00:13]} Ke6 {[%emt 0:00:21]} 35. Ne2 {[%emt 0:04:49]} Nxe5 {[%emt 0:01:28]} 36. Nf4+ {[%emt 0:01:14]} Kd6 {[%emt 0:00:20]} 37. Nd3 {[%emt 0:08:41]} Nxd3 {[%emt 0:02:59]} 38. Kxd3 {[%emt 0:00:05]} Ke5 {[%emt 0:00:23]} 39. b4 {[%emt 0:00:46]} b6 {[%emt 0:02:49]} 40. g3 {[%emt 0:00:00]} g5 {[%emt 0:00:00]} 41. h3 {[%emt 0:00:56]} c5 {[%emt 0:12:16]} 42. bxc5 {[%emt 0:00:40]} bxc5 {[%emt 0:00:32]} 43. g4 {[%emt 0:04:51]} c4+ {[%emt 0:14:26]} 44. Kxc4 {[%emt 0:00:07]} Kxe4 {[%emt 0:00:03]} 45. Kb5 {[%emt 0:00:05]} Kf4 {[%emt 0:00:10]} 46. Ka6 {[%emt 0:00:07]} Kg3 {[%emt 0:00:04]} 47. Kxa7 {[%emt 0:00:05]} Kxh3 {[%emt 0:00:07]} 48. Kb8 {[%emt 0:00:16]} Kxg4 {[%emt 0:00:52]} 49. a4 {[%emt 0:00:05]} Kf4 {[%emt 0:00:34]} 50. a5 {[%emt 0:00:05]} g4 {[%emt 0:00:08]} 51. a6 {[%emt 0:00:05]} g3 52. a7 {[%emt 0:00:04]} g2 {[%emt 0:00:17]} 53. a8=Q {[%emt 0:00:11]} g1=Q {[%emt 0:00:05]} 54. Qa4+ {[%emt 0:00:32]} Kf3 {[%emt 0:02:04]} 55. Qc6+ {[%emt 0:01:30]} Kg3 {[%emt 0:02:07]} 56. Qd6+ {[%emt 0:01:50]} 1/2-1/2

[Event "EYTCC Girls U18 2022"]
[Site "Thessaloniki"]
[Date "2022.07.17"]
[Round "6.1"]
[White "Ciolacu, Alessia-Mihaela"]
[Black "Kara, Gulce Nehir"]
[Result "1-0"]
[ECO "D21"]
[WhiteElo "2163"]
[BlackElo "1907"]
[Annotator "ChessBase"]
[PlyCount "113"]
[EventDate "2022.07.12"]
[EventType "team-tourn"]
[EventCountry "GRE"]
[SourceTitle "playchess.com"]
[Source "ChessBase"]
[SourceQuality "1"]
[WhiteTeam "Romania"]
[BlackTeam "Turkey"]
[WhiteTeamCountry "ROU"]
[BlackTeamCountry "TUR"]
[TimeControl "40/5400+30:1800+30"]

1. d4 {[%emt 0:00:04]} d5 {[%emt 0:00:09]} 2. c4 {[%emt 0:00:05]} dxc4 {[%emt 0:00:04]} 3. Nf3 {[%emt 0:00:11]} c5 {[%emt 0:00:10]} 4. e3 {[%emt 0:01:14]} cxd4 {[%emt 0:00:07]} 5. Bxc4 {[%emt 0:00:54]} Qc7 {[%emt 0:00:12]} 6. Qxd4 {[%emt 0:12:21]} Nc6 {[%emt 0:03:39]} 7. Qc3 {[%emt 0:04:37]} e6 {[%emt 0:11:08]} 8. O-O {[%emt 0:00:43]} Nf6 {[%emt 0:01:19]} 9. Nbd2 {[%emt 0:09:30]} Bd7 {[%emt 0:07:25]} 10. a3 {[%emt 0:05:39]} Bd6 {[%emt 0:07:11]} 11. b3 {[%emt 0:11:34]} Rc8 {[%emt 0:07:28]} 12. Bb2 {[%emt 0:00:57]} Qb8 {[%emt 0:04:05]} 13. Rac1 {[%emt 0:06:15]} b5 {[%emt 0:11:11]} 14. Be2 {[%emt 0:00:36]} O-O {[%emt 0:03:19]} 15. Ne4 {[%emt 0:03:53]} Ne5 {[%emt 0:05:28]} 16. Qd4 {[%emt 0:01:42]} Nxe4 {[%emt 0:08:17]} 17. Nxe5 {[%emt 0:01:07]} Bxe5 {[%emt 0:00:13]} 18. Qxe5 {[%emt 0:00:06]} Qxe5 {[%emt 0:00:29]} 19. Bxe5 {[%emt 0:00:05]} Nd2 {[%emt 0:03:24]} 20. Rxc8 {[%emt 0:01:23]} Bxc8 {[%emt 0:02:58]} 21. Rd1 {[%emt 0:07:04]} Nxb3 {[%emt 0:00:30]} 22. Bxb5 {[%emt 0:00:39]} Nc5 {[%emt 0:03:23]} 23. Bd4 {[%emt 0:05:03]} Rd8 {[%emt 0:01:00]} 24. Rb1 {[%emt 0:00:45]} a6 {[%emt 0:02:48]} 25. Be2 {[%emt 0:01:49]} Nd7 {[%emt 0:02:36]} 26. e4 {[%emt 0:03:38]} e5 {[%emt 0:01:12]} 27. Be3 {[%emt 0:00:48]} Kf8 {[%emt 0:02:12]} 28. Bd2 {[%emt 0:02:31]} Nf6 {[%emt 0:02:53]} 29. Ba5 {[%emt 0:00:44]} Re8 {[%emt 0:01:37]} 30. Bb4+ {[%emt 0:02:20]} Kg8 {[%emt 0:00:05]} 31. f3 {[%emt 0:00:06]} g6 {[%emt 0:01:22]} 32. Ba5 {[%emt 0:07:41]} Kg7 {[%emt 0:04:13]} 33. Rb6 {[%emt 0:01:42]} Nd7 {[%emt 0:00:48]} 34. Rc6 {[%emt 0:00:41]} Nb8 {[%emt 0:00:39]} 35. Rc7 {[%emt 0:00:12]} Bd7 {[%emt 0:01:07]} 36. Bxa6 {[%emt 0:04:03]} Be6 {[%emt 0:02:56]} 37. Bb5 {[%emt 0:01:37]} Rc8 {[%emt 0:00:13]} 38. Rb7 {[%emt 0:02:58]} Nc6 {[%emt 0:00:41]} 39. Bc7 {[%emt 0:00:54]} Bd7 {[%emt 0:00:47]} 40. Bd6 {[%emt 0:00:00]} Be8 {[%emt 0:00:00]} 41. Rc7 {[%emt 0:11:42]} Rxc7 {[%emt 0:01:57]} 42. Bxc7 {[%emt 0:00:02]} Kf6 {[%emt 0:02:05]} 43. a4 {[%emt 0:01:08]} Ke6 {[%emt 0:00:54]} 44. a5 {[%emt 0:01:02]} Kd7 {[%emt 0:04:16]} 45. Bxe5 {[%emt 0:00:17]} Kc8 {[%emt 0:00:45]} 46. Bd6 {[%emt 0:03:14]} Kb7 {[%emt 0:01:54]} 47. Bc5 {[%emt 0:00:11]} Bd7 {[%emt 0:00:32]} 48. a6+ {[%emt 0:00:21]} Ka8 {[%emt 0:00:53]} 49. Kf2 {[%emt 0:00:56]} Kb8 {[%emt 0:01:39]} 50. Bb6 {[%emt 0:01:47]} Ka8 {[%emt 0:01:46]} 51. Ke3 {[%emt 0:00:12]} Kb8 {[%emt 0:01:15]} 52. f4 {[%emt 0:02:11]} f5 {[%emt 0:01:16]} 53. exf5 {[%emt 0:00:46]} gxf5 {[%emt 0:00:06]} 54. Kf2 {[%emt 0:01:25]} Be8 {[%emt 0:01:22]} 55. Kg3 {[%emt 0:00:28]} Ka8 {[%emt 0:00:19]} 56. Kh4 {[%emt 0:00:14]} h6 {[%emt 0:00:25]} 57. h3 {[%emt 0:00:09]} 1-0

[Event "EYTCC Girls U18 2022"]
[Site "Thessaloniki"]
[Date "2022.07.17"]
[Round "6.2"]
[White "Kayis, Gulcan Sena"]
[Black "Obada, Ema"]
[Result "1-0"]
[ECO "C02"]
[WhiteElo "1682"]
[BlackElo "2042"]
[Annotator "RC"]
[PlyCount "53"]
[EventDate "2022.07.12"]
[EventType "team-tourn"]
[EventCountry "GRE"]
[SourceTitle "playchess.com"]
[Source "ChessBase"]
[SourceQuality "1"]
[WhiteTeam "Turkey"]
[BlackTeam "Romania"]
[WhiteTeamCountry "TUR"]
[BlackTeamCountry "ROU"]
[TimeControl "40/5400+30:1800+30"]

1. e4 {[%emt 0:00:04]} e6 {[%emt 0:00:06]} 2. d4 {[%emt 0:00:11]} d5 {[%emt 0:00:06]} 3. e5 {[%emt 0:00:14]} c5 {[%emt 0:00:05]} 4. c3 {[%emt 0:00:07]} Nc6 {[%emt 0:00:05]} 5. Nf3 {[%emt 0:00:08]} Nge7 {[%emt 0:00:06]} 6. Na3 {[%emt 0:03:24]} cxd4 {[%emt 0:00:59]} 7. cxd4 {[%emt 0:00:15]} Nf5 {[%emt 0:00:33]} 8. Nc2 {[%emt 0:00:40]} Bd7 {[%emt 0:01:34]} 9. Bd3 {[%emt 0:00:56]} Qb6 {[%emt 0:02:29]} 10. O-O {[%emt 0:02:08]} Be7 {[%emt 0:04:41]} 11. g4 {[%emt 0:05:27]} Nh4 {[%emt 0:00:59]} 12. Nxh4 {[%emt 0:00:38]} Bxh4 {[%emt 0:00:06]} 13. g5 {[%emt 0:00:07]} Nxd4 {[%emt 0:26:09]} 14. Be3 {[%emt 0:08:27]} Bxg5 {[%emt 0:01:20]} 15. Bxd4 {[%emt 0:04:28]} Qd8 {[%emt 0:02:25]} 16. Qe2 {[%emt 0:09:13]} O-O {[%emt 0:05:52]} 17. Be3 {[%emt 0:06:18]} Be7 {[%emt 0:06:35]} 18. Nd4 {[%emt 0:07:41]} Qe8 {[%emt 0:12:30]} 19. Kh1 {[%emt 0:14:44]} f6 {[%emt 0:02:35]} 20. f4 {[%emt 0:02:03]} g6 {[%emt 0:02:37]} 21. Rg1 {[%emt 0:05:15]} f5 {[%emt 0:05:10]} 22. Rac1 {[%emt 0:02:44]} Qd8 {[%emt 0:04:04]} 23. Bb5 {[%emt 0:03:31]} Bc8 {[%emt 0:06:08]} 24. Qc2 {[%emt 0:03:17]} a6 {[%emt 0:02:21]} 25. Bd3 {[%emt 0:02:34]} Bb4 {[%emt 0:00:41]} 26. Qa4 {[%emt 0:02:42]} Qe7 {[%emt 0:03:20]} 27. a3 {[%emt 0:00:53]} 1-0

[Event "EYTCC Girls U18 2022"]
[Site "Thessaloniki"]
[Date "2022.07.17"]
[Round "6.3"]
[White "Demeter, Dorina"]
[Black "Wikar, Martyna"]
[Result "0-1"]
[ECO "A35"]
[WhiteElo "2176"]
[BlackElo "2208"]
[Annotator "ChessBase"]
[PlyCount "64"]
[EventDate "2022.07.12"]
[EventType "team-tourn"]
[EventCountry "GRE"]
[SourceTitle "playchess.com"]
[Source "ChessBase"]
[SourceQuality "1"]
[WhiteTeam "Hungary"]
[BlackTeam "Poland"]
[WhiteTeamCountry "HUN"]
[BlackTeamCountry "POL"]
[TimeControl "40/5400+30:1800+30"]

1. Nf3 {[%emt 0:00:04]} c5 {[%emt 0:00:21]} 2. c4 {[%emt 0:00:44]} Nf6 {[%emt 0:00:08]} 3. Nc3 {[%emt 0:00:18]} Nc6 {[%emt 0:00:07]} 4. g3 {[%emt 0:00:42]} d5 {[%emt 0:00:06]} 5. d4 {[%emt 0:03:41]} cxd4 {[%emt 0:03:46]} 6. Nxd4 {[%emt 0:01:36]} dxc4 {[%emt 0:13:42]} 7. Nxc6 {[%emt 0:02:17]} Qxd1+ {[%emt 0:00:33]} 8. Kxd1 {[%emt 0:04:23]} bxc6 {[%emt 0:00:21]} 9. Bg2 {[%emt 0:01:29]} Bb7 {[%emt 0:05:11]} 10. Kc2 {[%emt 0:08:09]} e5 {[%emt 0:01:09]} 11. Nb5 {[%emt 0:08:13]} O-O-O {[%emt 0:05:56]} 12. Nc3 {[%emt 0:19:53]} Nd5 {[%emt 0:05:44]} 13. a3 {[%emt 0:02:56]} Be7 {[%emt 0:03:07]} 14. Bd2 {[%emt 0:03:10]} Kb8 {[%emt 0:04:50]} 15. Rhd1 {[%emt 0:03:04]} g6 {[%emt 0:06:04]} 16. e4 {[%emt 0:07:48]} Nc7 {[%emt 0:05:26]} 17. Bh3 {[%emt 0:03:24]} Nb5 {[%emt 0:06:34]} 18. Ne2 {[%emt 0:02:08]} c5 {[%emt 0:01:01]} 19. f3 {[%emt 0:03:47]} f5 {[%emt 0:04:13]} 20. Ba5 {[%emt 0:05:20]} Rxd1 {[%emt 0:04:30]} 21. Rxd1 {[%emt 0:06:06]} Nd4+ {[%emt 0:02:33]} 22. Nxd4 {[%emt 0:02:20]} cxd4 {[%emt 0:01:22]} 23. exf5 {[%emt 0:01:41]} Bxf3 {[%emt 0:01:45]} 24. Re1 {[%emt 0:03:20]} e4 {[%emt 0:01:42]} 25. Bb4 {[%emt 0:05:01]} Bxb4 {[%emt 0:02:29]} 26. axb4 {[%emt 0:00:02]} e3 {[%emt 0:00:16]} 27. Bf1 {[%emt 0:01:29]} d3+ {[%emt 0:00:31]} 28. Bxd3 {[%emt 0:00:20]} cxd3+ {[%emt 0:00:05]} 29. Kxd3 {[%emt 0:00:04]} e2 {[%emt 0:00:53]} 30. Ke3 {[%emt 0:00:11]} Bh5 {[%emt 0:04:23]} 31. Kf4 {[%emt 0:01:27]} gxf5 {[%emt 0:00:21]} 32. h3 {[%emt 0:00:20]} Re8 {[%emt 0:01:07]} 0-1

[Event "EYTCC Girls U18 2022"]
[Site "Thessaloniki"]
[Date "2022.07.17"]
[Round "6.4"]
[White "Marcinczyk, Monika"]
[Black "Sulyok, Eszter"]
[Result "0-1"]
[ECO "B28"]
[WhiteElo "1991"]
[BlackElo "2091"]
[Annotator "TA"]
[PlyCount "86"]
[EventDate "2022.07.12"]
[EventType "team-tourn"]
[EventCountry "GRE"]
[SourceTitle "playchess.com"]
[Source "ChessBase"]
[SourceQuality "1"]
[WhiteTeam "Poland"]
[BlackTeam "Hungary"]
[WhiteTeamCountry "POL"]
[BlackTeamCountry "HUN"]
[TimeControl "40/5400+30:1800+30"]

{[%evp 9,86,27,37,0,21,22,35,0,0,0,0,-20,0,0,14,14,31,-41,-6,-26,0,0,0,-16,0,-21,-10,-39,-7,-39,-27,-31,-43,-34,-27,-42,27,10,12,15,18,0,0,0,0,0,0,0,17,-71,-6,-25,-17,-22,0,-239,-241,-520,-518,-517,-504,-502,-416,-406,-416,-489,-461,-490,-472,-460,-459,-490,-301,-533,-433,-12839,-12839,-29996,-29997]} 1. e4 {[%emt 0:00:04]} c5 {[%emt 0:00:07]} 2. Nf3 {[%emt 0:00:06]} a6 {[%emt 0:00:08]} 3. d4 {[%emt 0:01:52]} cxd4 {[%emt 0:00:26]} 4. Nxd4 {[%emt 0:00:05]} Nc6 {[%emt 0:00:24]} 5. c4 {[%emt 0:06:32]} e5 {[%emt 0:00:33] And now ...Bb4+ would win.} 6. Nxc6 {[%emt 0:02:59] B28: Sicilian: 2 Nf3 a6 (O'Kelly Variation).} bxc6 {[%emt 0:00:15]} 7. Be3 {[%emt 0:09:35]} Nf6 {[%emt 0:04:14]} 8. Nc3 {[%emt 0:00:48] White is slightly better.} Rb8 {[%emt 0:03:11] [#]} 9. Qd2 $146 {[%emt 0:11:56]} ({Predecessor:} 9. Qc2 Ng4 10. Bc1 Bc5 11. Nd1 Qh4 12. g3 Qh5 {1-0 (12) Law,S (1451)-Ottenweller,W (1514) LSS email 2010}) 9... Bb4 {[%emt 0:11:11]} 10. f3 {[%emt 0:09:07]} O-O {[%emt 0:08:21]} 11. Rd1 {[%emt 0:03:31]} Qa5 {[%emt 0:02:14]} 12. Be2 {[%emt 0:10:43]} Rd8 {[%emt 0:04:51]} 13. Bg5 {[%emt 0:00:27]} (13. a3 $14 Bxc3 14. Qxc3 Qxc3+ 15. bxc3) 13... Be7 {[%emt 0:01:11]} 14. a3 {[%emt 0:08:02]} (14. O-O {looks sharper.} Qb6+ 15. Be3 Qxb2 16. Qxb2 Rxb2 17. Rb1) 14... d6 {[%emt 0:05:16]} 15. Be3 {[%emt 0:01:54]} Qc7 {[%emt 0:05:29]} 16. O-O {[%emt 0:00:38]} a5 {[%emt 0:00:22]} 17. Rb1 {[%emt 0:08:56]} Be6 {[%emt 0:05:25]} 18. Rfd1 {[%emt 0:00:13]} Rb7 {[%emt 0:04:08]} (18... d5 $5 19. cxd5 cxd5 20. exd5 Nxd5 21. Nxd5 Rxd5 $15) 19. b4 {[%emt 0:05:10]} axb4 {[%emt 0:00:40]} (19... d5 {is more complex.} 20. cxd5 cxd5 21. exd5 axb4 22. axb4 Bf5) 20. axb4 {[%emt 0:00:16]} d5 $1 {[%emt 0:00:58]} 21. exd5 {[%emt 0:03:53]} cxd5 {[%emt 0:01:20]} 22. cxd5 {[%emt 0:02:23]} Bxd5 {[%emt 0:10:17]} (22... Bf5 $15 23. Rb3 Rxb4) 23. Qc1 {[%emt 0:01:51]} ({But not} 23. Nxd5 Nxd5 24. Rdc1 Qb8 $17) 23... Bc4 {[%emt 0:06:35]} 24. Rxd8+ {[%emt 0:01:16]} Bxd8 {[%emt 0:00:04]} 25. Qd2 {[%emt 0:02:36] Bxc4 is the strong threat.} Be7 {[%emt 0:00:53]} 26. b5 {[%emt 0:01:51]} Bxe2 {[%emt 0:02:05]} 27. Nxe2 {[%emt 0:00:02]} Bc5 {[%emt 0:04:03] Prevents b6.} 28. Nc3 {[%emt 0:01:20]} h6 {[%emt 0:01:38]} 29. Kf2 {[%emt 0:02:18] [#]} (29. h3 $11 {keeps the balance.}) 29... e4 {[%emt 0:00:30]} (29... Bxe3+ $1 $17 30. Kxe3 (30. Qxe3 $2 Nd5 $17) 30... e4 31. Nxe4 Nxe4 32. fxe4 Qxh2) 30. Bxc5 $11 {[%emt 0:00:37]} Qxc5+ {[%emt 0:00:44]} 31. Qe3 {[%emt 0:00:05]} Qc4 {[%emt 0:00:26] Strongly threatening ...Nd5.} 32. h3 $2 {[%emt 0:02:44] [#]} (32. Rd1 $11 {and White stays safe.}) 32... Nd5 $1 $19 {[%emt 0:01:59]} ({Inferior is} 32... exf3 33. gxf3 Rd7 34. Ne2 $17) 33. Qxe4 {[%emt 0:00:59]} (33. Nxd5 {was forced.} Qc2+ 34. Kg3 Qxb1 35. Nc3) 33... Qc5+ {[%emt 0:00:05]} 34. Kg3 {[%emt 0:00:56]} Qc7+ {[%emt 0:00:05]} ({And not} 34... Nxc3 35. Qxb7 Qd6+ 36. Kf2 Qd4+ 37. Kg3 Qd6+ 38. Kf2 Qd4+ 39. Kg3 Qd6+ $11) 35. f4 {[%emt 0:01:24]} Qxc3+ {[%emt 0:00:10]} 36. Kh2 {[%emt 0:00:09]} Qc5 {[%emt 0:00:53]} 37. Rd1 {[%emt 0:00:25]} Rxb5 {[%emt 0:01:25]} 38. Qe8+ {[%emt 0:00:15]} Kh7 {[%emt 0:00:06]} 39. Qxf7 {[%emt 0:00:22]} Nf6 {[%emt 0:01:05]} 40. Qe6 {[%emt 0:00:00]} Qf5 {[%emt 0:00:00]} 41. Qc4 {[%emt 0:05:09]} (41. Qxf5+ {is a better defense.} Rxf5 42. Rd4) 41... Rb2 {[%emt 0:04:48] Hoping for ...Ne4.} 42. Rd3 {[%emt 0:05:16]} (42. Qd4 $142 Ra2 43. Rd2) 42... Ne4 {[%emt 0:04:08]} 43. Qc7 {[%emt 0:01:15]} Qg6 {[%emt 0:01:56] Weighted Error Value: White=0.74/Black=0.25 (precise)} 0-1

[Event "EYTCC Girls U18 2022"]
[Site "Thessaloniki"]
[Date "2022.07.17"]
[Round "6.5"]
[White "Ziegenfuss, Antonia"]
[Black "Levitan, Ronit"]
[Result "1/2-1/2"]
[ECO "E04"]
[WhiteElo "2170"]
[BlackElo "2084"]
[Annotator "ChessBase"]
[PlyCount "80"]
[EventDate "2022.07.12"]
[EventType "team-tourn"]
[EventCountry "GRE"]
[SourceTitle "playchess.com"]
[Source "ChessBase"]
[SourceQuality "1"]
[WhiteTeam "Germany"]
[BlackTeam "Israel"]
[WhiteTeamCountry "GER"]
[BlackTeamCountry "ISR"]
[TimeControl "40/5400+30:1800+30"]

1. d4 {[%emt 0:00:03]} Nf6 {[%emt 0:00:48]} 2. c4 {[%emt 0:00:21]} e6 {[%emt 0:00:08]} 3. g3 {[%emt 0:00:13]} d5 {[%emt 0:00:29]} 4. Bg2 {[%emt 0:00:16]} dxc4 {[%emt 0:00:31]} 5. Nf3 {[%emt 0:00:28]} a6 {[%emt 0:00:13]} 6. O-O {[%emt 0:00:18]} Nc6 {[%emt 0:00:13]} 7. Nbd2 {[%emt 0:00:09]} Nxd4 {[%emt 0:10:28]} 8. Nxc4 {[%emt 0:00:21]} Nxf3+ {[%emt 0:00:06]} 9. Bxf3 {[%emt 0:00:04]} Qxd1 {[%emt 0:03:59]} 10. Rxd1 {[%emt 0:00:10]} Nd5 {[%emt 0:02:44]} 11. e4 {[%emt 0:01:00]} Nb6 {[%emt 0:00:23]} 12. Nxb6 {[%emt 0:01:01]} cxb6 {[%emt 0:00:05]} 13. e5 {[%emt 0:00:20]} Bc5 {[%emt 0:04:29]} 14. Bg5 {[%emt 0:02:24]} Bd7 {[%emt 0:01:11]} 15. Bxb7 {[%emt 0:01:09]} Ra7 {[%emt 0:00:11]} 16. Bc6 {[%emt 0:00:09]} h6 {[%emt 0:01:06]} 17. Rxd7 {[%emt 0:07:36]} Rxd7 {[%emt 0:00:26]} 18. Bxh6 {[%emt 0:01:33]} gxh6 {[%emt 0:03:28]} 19. Rd1 {[%emt 0:00:20]} O-O {[%emt 0:00:11]} 20. Rxd7 {[%emt 0:02:06]} f6 {[%emt 0:03:52]} 21. exf6 {[%emt 0:04:42]} Rxf6 {[%emt 0:00:17]} 22. Rd2 {[%emt 0:01:21]} e5 {[%emt 0:02:33]} 23. Bb7 {[%emt 0:02:56]} a5 {[%emt 0:00:21]} 24. Kg2 {[%emt 0:15:21]} Kg7 {[%emt 0:00:28]} 25. f3 {[%emt 0:02:07]} Rd6 {[%emt 0:01:00]} 26. Bd5 {[%emt 0:17:41]} Kf6 {[%emt 0:01:38]} 27. b3 {[%emt 0:01:10]} Be3 {[%emt 0:03:44]} 28. Rd3 {[%emt 0:01:19]} Bd4 {[%emt 0:00:09]} 29. Be4 {[%emt 0:04:20]} Bc5 {[%emt 0:00:09]} 30. f4 {[%emt 0:05:01]} Rxd3 {[%emt 0:00:52]} 31. Bxd3 {[%emt 0:00:04]} exf4 {[%emt 0:01:07]} 32. gxf4 {[%emt 0:00:04]} Be3 {[%emt 0:00:33]} 33. Kf3 {[%emt 0:00:10]} Bd2 {[%emt 0:00:22]} 34. Ke4 {[%emt 0:00:31]} Bc1 {[%emt 0:00:15]} 35. h3 {[%emt 0:00:54]} Bd2 {[%emt 0:00:09]} 36. a4 {[%emt 0:02:14]} Bc1 {[%emt 0:00:20]} 37. Bb5 {[%emt 0:01:00]} Bd2 {[%emt 0:00:07]} 38. Bd3 {[%emt 0:00:42]} Bc1 {[%emt 0:00:07]} 39. Bb5 {[%emt 0:00:23]} Bd2 {[%emt 0:00:06]} 40. Bd3 {[%emt 0:00:00]} Bc1 {[%emt 0:00:00]} 1/2-1/2